[Event "European Rapid Championship 2021"]
[Site "Katowice"]
[Date "2021.12.19"]
[Round "7.28"]
[White "Kiolbasa, Damian"]
[Black "Czerw, Dawid"]
[Result "0-1"]
[ECO "A13"]
[WhiteElo "1893"]
[BlackElo "2158"]
[Annotator "NA"]
[PlyCount "68"]
[EventDate "2021.12.18"]
[EventType "swiss"]
[EventCountry "POL"]
[SourceTitle "playchess.com"]
[Source "ChessBase"]
[SourceQuality "1"]
[TimeControl "900+10"]

1. Nf3 {[%emt 0:00:02]} e6 {[%emt 0:00:06]} 2. g3 {[%emt 0:00:05]} Nf6 {
[%emt 0:00:03]} 3. Bg2 {[%emt 0:00:04]} d5 {[%emt 0:00:02]} 4. c4 {[%emt 0:00:
04]} dxc4 {[%emt 0:00:14]} 5. Qa4+ {[%emt 0:00:52]} Nbd7 {[%emt 0:00:02]} 6.
Qxc4 {[%emt 0:00:04]} a6 {[%emt 0:00:01]} 7. Qc2 {[%emt 0:03:00]} c5 {[%emt 0:
00:06]} 8. b3 {[%emt 0:00:07]} Be7 {[%emt 0:00:05]} 9. Bb2 {[%emt 0:00:01]} O-O
{[%emt 0:00:03]} 10. O-O {[%emt 0:00:06]} Qc7 {[%emt 0:01:54]} 11. Rc1 {
[%emt 0:03:27]} b5 {[%emt 0:00:49]} 12. d3 {[%emt 0:00:53]} Bb7 {[%emt 0:00:15]
} 13. Nbd2 {[%emt 0:00:02]} Rac8 {[%emt 0:00:26]} 14. h4 {[%emt 0:00:01]} h6 {
[%emt 0:00:15]} 15. a3 {[%emt 0:00:06]} Qb8 {[%emt 0:00:41]} 16. e4 {[%emt 0:
01:53]} Rfd8 {[%emt 0:00:53]} 17. a4 {[%emt 0:00:13]} Ng4 {[%emt 0:00:20]} 18.
axb5 {[%emt 0:00:17]} axb5 {[%emt 0:00:02]} 19. Ra5 {[%emt 0:00:40]} Bc6 {
[%emt 0:00:31]} 20. d4 {[%emt 0:00:27]} cxd4 {[%emt 0:03:11]} 21. Nxd4 {
[%emt 0:00:03]} Bb4 {[%emt 0:00:17]} 22. Nxc6 {[%emt 0:01:44]} Rxc6 {[%emt 0:
00:41]} 23. Qxc6 {[%emt 0:00:29]} Bxa5 {[%emt 0:00:03]} 24. Nf3 {[%emt 0:00:44]
} Bb6 {[%emt 0:02:40]} 25. Bd4 {[%emt 0:00:01]} Bxd4 {[%emt 0:00:27]} 26. Nxd4
{[%emt 0:00:01]} Nde5 {[%emt 0:01:44]} 27. Qc3 {[%emt 0:01:47]} Qa7 {[%emt 0:
00:51]} 28. Rd1 {[%emt 0:00:20]} b4 {[%emt 0:00:28]} 29. Qd2 {[%emt 0:00:59]}
Nf6 {[%emt 0:01:22]} 30. Qe3 {[%emt 0:00:35]} Neg4 {[%emt 0:00:18]} 31. Qe2 {
[%emt 0:01:01]} Rxd4 {[%emt 0:00:05]} 32. Rc1 {[%emt 0:00:02]} Nxf2 {[%emt 0:
01:08]} 33. Qxf2 {[%emt 0:00:17]} Ng4 {[%emt 0:00:02]} 34. Rc8+ {[%emt 0:00:09]
} Kh7 {[%emt 0:00:01]} 0-1

[Event "European Rapid Championship 2021"]
[Site "Katowice"]
[Date "2021.12.19"]
[Round "7.29"]
[White "Budrewicz, Krzysztof"]
[Black "Szczurek, Krzysztof"]
[Result "1-0"]
[ECO "E91"]
[WhiteElo "2281"]
[BlackElo "2086"]
[Annotator "NA"]
[PlyCount "71"]
[EventDate "2021.12.18"]
[EventType "swiss"]
[EventCountry "POL"]
[SourceTitle "playchess.com"]
[Source "ChessBase"]
[SourceQuality "1"]
[TimeControl "900+10"]

1. d4 {[%emt 0:00:03]} Nf6 {[%emt 0:00:01]} 2. c4 {[%emt 0:00:03]} d6 {[%emt 0:
00:03]} 3. Nf3 {[%emt 0:00:23]} g6 {[%emt 0:00:15]} 4. Nc3 {[%emt 0:00:06]} Bg7
{[%emt 0:00:03]} 5. e4 {[%emt 0:00:33]} O-O {[%emt 0:00:10]} 6. Be2 {[%emt 0:
00:03]} Nbd7 {[%emt 0:00:03]} 7. Be3 {[%emt 0:00:17]} e5 {[%emt 0:00:04]} 8. d5
{[%emt 0:00:59]} Nc5 {[%emt 0:01:22]} 9. Nd2 {[%emt 0:00:07]} a5 {[%emt 0:00:
07]} 10. b3 {[%emt 0:01:43]} Ne8 {[%emt 0:00:36]} 11. O-O {[%emt 0:00:25]} f5 {
[%emt 0:00:15]} 12. a3 {[%emt 0:00:50]} f4 {[%emt 0:01:43]} 13. Bxc5 {[%emt 0:
00:03]} dxc5 {[%emt 0:00:02]} 14. Bg4 {[%emt 0:00:05]} Nf6 {[%emt 0:01:41]} 15.
Bxc8 {[%emt 0:00:23]} Qxc8 {[%emt 0:00:02]} 16. Na4 {[%emt 0:00:12]} b6 {
[%emt 0:00:17]} 17. d6 {[%emt 0:00:08]} f3 {[%emt 0:02:29]} 18. Nxf3 {[%emt 0:
01:28]} Rd8 {[%emt 0:00:05]} 19. Qe2 {[%emt 0:00:31]} Rxd6 {[%emt 0:00:14]} 20.
Rad1 {[%emt 0:00:22]} Qe6 {[%emt 0:00:27]} 21. Rxd6 {[%emt 0:00:10]} Qxd6 {
[%emt 0:00:05]} 22. Rd1 {[%emt 0:00:02]} Qe7 {[%emt 0:00:02]} 23. Nc3 {[%emt 0:
00:11]} Rd8 {[%emt 0:01:30]} 24. Nd5 {[%emt 0:00:13]} Nxd5 {[%emt 0:00:03]} 25.
exd5 {[%emt 0:00:23]} a4 {[%emt 0:01:05]} 26. bxa4 {[%emt 0:00:15]} Ra8 {
[%emt 0:00:03]} 27. Nd2 {[%emt 0:01:21]} Rxa4 {[%emt 0:00:38]} 28. Qd3 {
[%emt 0:00:13]} Qd7 {[%emt 0:02:08]} 29. Ne4 {[%emt 0:00:11]} Kh8 {[%emt 0:00:
54]} 30. h4 {[%emt 0:01:05]} Qd8 {[%emt 0:00:20]} 31. d6 {[%emt 0:01:33]} h6 {
[%emt 0:01:13]} 32. d7 {[%emt 0:00:11]} Bf8 {[%emt 0:00:33]} 33. Qd5 {[%emt 0:
00:21]} Bg7 {[%emt 0:00:24]} 34. Qf7 {[%emt 0:00:12]} Kh7 {[%emt 0:00:11]} 35.
Rd3 {[%emt 0:00:10]} b5 {[%emt 0:00:43]} 36. Rg3 {[%emt 0:00:15]} 1-0

[Event "European Rapid Championship 2021"]
[Site "Katowice"]
[Date "2021.12.19"]
[Round "7.29"]
[White "Helis, Tadeusz"]
[Black "Musial, Tomasz"]
[Result "0-1"]
[ECO "A05"]
[WhiteElo "2155"]
[BlackElo "1916"]
[Annotator "NA"]
[PlyCount "96"]
[EventDate "2021.12.18"]
[EventType "swiss"]
[EventCountry "POL"]
[SourceTitle "playchess.com"]
[Source "ChessBase"]
[SourceQuality "1"]
[TimeControl "900+10"]

1. Nf3 {[%emt 0:00:03]} Nf6 {[%emt 0:00:01]} 2. c4 {[%emt 0:00:02]} e6 {
[%emt 0:00:01]} 3. g3 {[%emt 0:00:02]} b6 {[%emt 0:00:01]} 4. Bg2 {[%emt 0:00:
03]} Bb7 {[%emt 0:00:01]} 5. O-O {[%emt 0:00:03]} Be7 {[%emt 0:00:01]} 6. b3 {
[%emt 0:00:02]} O-O {[%emt 0:00:04]} 7. Bb2 {[%emt 0:00:02]} d5 {[%emt 0:00:01]
} 8. e3 {[%emt 0:00:05]} c5 {[%emt 0:00:03]} 9. Nc3 {[%emt 0:00:25]} Nbd7 {
[%emt 0:00:17]} 10. cxd5 {[%emt 0:00:49]} Nxd5 {[%emt 0:00:03]} 11. Nxd5 {
[%emt 0:00:02]} Bxd5 {[%emt 0:00:04]} 12. d4 {[%emt 0:00:06]} Bf6 {[%emt 0:00:
18]} 13. Qe2 {[%emt 0:00:12]} cxd4 {[%emt 0:00:26]} 14. Nxd4 {[%emt 0:00:17]}
Bxg2 {[%emt 0:00:09]} 15. Kxg2 {[%emt 0:00:03]} Qc7 {[%emt 0:00:40]} 16. Rac1 {
[%emt 0:00:03]} Qb7+ {[%emt 0:00:01]} 17. Qf3 {[%emt 0:00:02]} Qxf3+ {[%emt 0:
00:18]} 18. Kxf3 {[%emt 0:00:02]} e5 {[%emt 0:00:01]} 19. Rc7 {[%emt 0:00:25]}
Nc5 {[%emt 0:00:31]} 20. Rd1 {[%emt 0:00:48]} exd4 {[%emt 0:00:27]} 21. exd4 {
[%emt 0:00:02]} Ne6 {[%emt 0:00:07]} 22. Rc2 {[%emt 0:00:02]} Rad8 {[%emt 0:00:
27]} 23. d5 {[%emt 0:00:02]} Bxb2 {[%emt 0:00:07]} 24. Rxb2 {[%emt 0:00:02]}
Rd6 {[%emt 0:00:48]} 25. Rbd2 {[%emt 0:00:07]} Nc7 {[%emt 0:00:13]} 26. h4 {
[%emt 0:00:09]} Rfd8 {[%emt 0:00:04]} 27. Ke4 {[%emt 0:00:02]} Ne8 {[%emt 0:01:
05]} 28. f3 {[%emt 0:00:11]} Nf6+ {[%emt 0:00:34]} 29. Ke5 {[%emt 0:00:01]} h5
{[%emt 0:00:02]} 30. Rd4 {[%emt 0:00:03]} Kf8 {[%emt 0:02:25]} 31. g4 {[%emt 0:
00:06]} hxg4 {[%emt 0:00:02]} 32. fxg4 {[%emt 0:00:02]} Ke7 {[%emt 0:01:10]}
33. g5 {[%emt 0:00:02]} Ne8 {[%emt 0:00:58]} 34. Kf5 {[%emt 0:00:45]} Nc7 {
[%emt 0:00:17]} 35. Ke5 {[%emt 0:00:22]} f6+ {[%emt 0:01:18]} 36. Ke4 {[%emt 0:
00:02]} Nb5 {[%emt 0:01:52]} 37. Rc4 {[%emt 0:00:04]} Re6+ {[%emt 0:02:01]} 38.
Kf4 {[%emt 0:00:44]} Re5 {[%emt 0:00:16]} 39. a4 {[%emt 0:00:06]} Nd6 {[%emt 0:
00:12]} 40. Rc7+ {[%emt 0:00:10]} Rd7 {[%emt 0:00:01]} 41. Rc6 {[%emt 0:00:02]}
Re4+ {[%emt 0:00:07]} 42. Kg3 {[%emt 0:00:06]} fxg5 {[%emt 0:00:14]} 43. hxg5 {
[%emt 0:00:03]} Re3+ {[%emt 0:00:07]} 44. Kf4 {[%emt 0:00:01]} Rxb3 {[%emt 0:
00:05]} 45. Re1+ {[%emt 0:00:02]} Kd8 {[%emt 0:00:47]} 46. Re6 {[%emt 0:00:04]}
Rb4+ {[%emt 0:00:08]} 47. Kf3 {[%emt 0:00:27]} Nf5 {[%emt 0:00:11]} 48. Re4 {
[%emt 0:00:09]} Nd4+ {[%emt 0:00:09]} 0-1

[Event "European Rapid Championship 2021"]
[Site "Katowice"]
[Date "2021.12.19"]
[Round "7.30"]
[White "Dzierzak, Radoslaw"]
[Black "Szwed, Jacek"]
[Result "0-1"]
[ECO "B44"]
[WhiteElo "2075"]
[BlackElo "2372"]
[Annotator "NA"]
[PlyCount "92"]
[EventDate "2021.12.18"]
[EventType "swiss"]
[EventCountry "POL"]
[SourceTitle "playchess.com"]
[Source "ChessBase"]
[SourceQuality "1"]
[TimeControl "900+10"]

1. e4 {[%emt 0:00:02]} c5 {[%emt 0:00:03]} 2. Nf3 {[%emt 0:00:02]} e6 {[%emt 0:
00:02]} 3. d4 {[%emt 0:00:01]} cxd4 {[%emt 0:00:03]} 4. Nxd4 {[%emt 0:00:02]}
Nc6 {[%emt 0:00:03]} 5. Nb5 {[%emt 0:00:05]} d6 {[%emt 0:00:15]} 6. c4 {
[%emt 0:00:05]} Nf6 {[%emt 0:00:15]} 7. N1c3 {[%emt 0:00:01]} a6 {[%emt 0:00:
15]} 8. Na3 {[%emt 0:00:01]} Be7 {[%emt 0:01:01]} 9. Be2 {[%emt 0:00:12]} O-O {
[%emt 0:00:24]} 10. O-O {[%emt 0:00:03]} Ne5 {[%emt 0:00:54]} 11. Be3 {[%emt 0:
00:33]} b6 {[%emt 0:00:11]} 12. f3 {[%emt 0:00:22]} Rb8 {[%emt 0:00:23]} 13.
Rc1 {[%emt 0:01:17]} Bb7 {[%emt 0:00:14]} 14. Qd4 {[%emt 0:01:53]} Ned7 {
[%emt 0:00:57]} 15. Rfd1 {[%emt 0:00:12]} Re8 {[%emt 0:00:30]} 16. Qd2 {
[%emt 0:01:32]} Qc7 {[%emt 0:00:42]} 17. Kh1 {[%emt 0:01:11]} Kh8 {[%emt 0:00:
08]} 18. Nc2 {[%emt 0:02:34]} Rg8 {[%emt 0:00:17]} 19. Nd4 {[%emt 0:00:44]} Nh5
{[%emt 0:02:55]} 20. b4 {[%emt 0:01:43]} g5 {[%emt 0:00:13]} 21. Ndb5 {[%emt 0:
03:04]} axb5 {[%emt 0:06:09]} 22. Nxb5 {[%emt 0:00:02]} Qd8 {[%emt 0:00:13]}
23. Nxd6 {[%emt 0:00:25]} Ne5 {[%emt 0:00:27]} 24. Qb2 {[%emt 0:01:09]} Bxd6 {
[%emt 0:00:07]} 25. c5 {[%emt 0:00:01]} f6 {[%emt 0:01:03]} 26. Rxd6 {[%emt 0:
00:18]} Qe7 {[%emt 0:00:09]} 27. Rxb6 {[%emt 0:00:51]} Nf4 {[%emt 0:00:00]} 28.
Bd4 {[%emt 0:00:39]} Nxe2 {[%emt 0:00:56]} 29. Qxe2 {[%emt 0:00:04]} Ba8 {
[%emt 0:00:08]} 30. Rxb8 {[%emt 0:00:12]} Rxb8 {[%emt 0:00:00]} 31. Qb2 {
[%emt 0:00:08]} Qc7 {[%emt 0:00:40]} 32. Bxe5 {[%emt 0:00:45]} fxe5 {[%emt 0:
00:38]} 33. b5 {[%emt 0:00:05]} g4 {[%emt 0:00:06]} 34. b6 {[%emt 0:00:06]} Qg7
{[%emt 0:00:11]} 35. c6 {[%emt 0:00:08]} gxf3 {[%emt 0:00:04]} 36. gxf3 {
[%emt 0:00:15]} Rc8 {[%emt 0:00:10]} 37. c7 {[%emt 0:00:19]} Bb7 {[%emt 0:00:
07]} 38. Rd1 {[%emt 0:00:08]} Qf6 {[%emt 0:00:03]} 39. Rd3 {[%emt 0:00:13]} Rg8
{[%emt 0:00:04]} 40. Qf2 {[%emt 0:00:09]} Bxe4 {[%emt 0:00:07]} 41. Re3 {
[%emt 0:00:01]} Bb7 {[%emt 0:00:08]} 42. a4 {[%emt 0:00:14]} e4 {[%emt 0:00:06]
} 43. h3 {[%emt 0:00:10]} exf3 {[%emt 0:00:05]} 44. a5 {[%emt 0:00:06]} Qa1+ {
[%emt 0:00:09]} 45. Kh2 {[%emt 0:00:02]} Rg2+ {[%emt 0:00:14]} 46. Qxg2 {
[%emt 0:00:05]} fxg2 {[%emt 0:00:01]} 0-1

[Event "European Rapid Championship 2021"]
[Site "Katowice"]
[Date "2021.12.19"]
[Round "7.30"]
[White "Galuszka, Tomasz"]
[Black "Tworzydlo, Piotr"]
[Result "1/2-1/2"]
[ECO "B43"]
[WhiteElo "1886"]
[BlackElo "2152"]
[Annotator "NA"]
[PlyCount "93"]
[EventDate "2021.12.18"]
[EventType "swiss"]
[EventCountry "POL"]
[SourceTitle "playchess.com"]
[Source "ChessBase"]
[SourceQuality "1"]
[TimeControl "900+10"]

1. e4 {[%emt 0:00:03]} c5 {[%emt 0:00:07]} 2. Nf3 {[%emt 0:00:02]} e6 {[%emt 0:
00:04]} 3. d4 {[%emt 0:00:05]} cxd4 {[%emt 0:00:03]} 4. Nxd4 {[%emt 0:00:02]}
a6 {[%emt 0:00:07]} 5. Nc3 {[%emt 0:00:23]} Qc7 {[%emt 0:00:20]} 6. g3 {
[%emt 0:01:01]} Nf6 {[%emt 0:01:00]} 7. Bg2 {[%emt 0:00:02]} Bc5 {[%emt 0:00:
47]} 8. O-O {[%emt 0:00:33]} O-O {[%emt 0:00:13]} 9. Nb3 {[%emt 0:00:26]} Be7 {
[%emt 0:00:38]} 10. a4 {[%emt 0:00:53]} d6 {[%emt 0:02:29]} 11. a5 {[%emt 0:00:
12]} Bd7 {[%emt 0:00:24]} 12. Be3 {[%emt 0:00:34]} Bc6 {[%emt 0:00:26]} 13. Qe2
{[%emt 0:02:04]} Re8 {[%emt 0:01:35]} 14. Rfd1 {[%emt 0:00:23]} Nbd7 {[%emt 0:
00:20]} 15. h3 {[%emt 0:00:14]} Rac8 {[%emt 0:01:24]} 16. f4 {[%emt 0:02:20]}
h6 17. g4 {[%emt 0:00:11]} Nf8 {[%emt 0:02:10]} 18. Qf2 {[%emt 0:01:03]} d5 {
[%emt 0:01:13]} 19. Bb6 {[%emt 0:01:25]} Qb8 {[%emt 0:00:11]} 20. exd5 {
[%emt 0:00:37]} exd5 {[%emt 0:00:30]} 21. Nxd5 {[%emt 0:00:10]} Bxd5 {[%emt 0:
01:00]} 22. Bxd5 {[%emt 0:00:02]} Nxd5 {[%emt 0:00:14]} 23. Rxd5 {[%emt 0:00:
01]} Ng6 {[%emt 0:00:50]} 24. Rf1 {[%emt 0:00:11]} Bf6 {[%emt 0:00:34]} 25. Nc5
{[%emt 0:01:48]} Bh4 {[%emt 0:00:25]} 26. Qd4 {[%emt 0:01:14]} Rc6 {[%emt 0:00:
17]} 27. Rd7 {[%emt 0:01:58]} Bg5 {[%emt 0:01:28]} 28. Qd5 {[%emt 0:00:45]} Be7
{[%emt 0:00:33]} 29. Nd3 {[%emt 0:00:32]} Rd6 {[%emt 0:00:08]} 30. Qxb7 {
[%emt 0:00:21]} Rxd7 {[%emt 0:00:11]} 31. Qxd7 {[%emt 0:00:01]} Bf6 {[%emt 0:
00:08]} 32. Qc7 {[%emt 0:00:29]} Qa8 {[%emt 0:00:02]} 33. f5 {[%emt 0:00:10]}
Ne5 {[%emt 0:00:28]} 34. Nxe5 {[%emt 0:00:07]} Bxe5 {[%emt 0:00:02]} 35. Qc4 {
[%emt 0:00:19]} Bxb2 {[%emt 0:00:10]} 36. Qd3 {[%emt 0:00:05]} Bf6 {[%emt 0:00:
10]} 37. c4 {[%emt 0:00:09]} Qc6 {[%emt 0:00:02]} 38. c5 {[%emt 0:00:09]} Re4 {
[%emt 0:00:06]} 39. Qf3 {[%emt 0:00:12]} Bd4+ {[%emt 0:00:03]} 40. Kh1 {
[%emt 0:00:02]} Qe8 41. f6 {[%emt 0:00:25]} Re3 {[%emt 0:00:07]} 42. Qg2 {
[%emt 0:00:06]} Re2 {[%emt 0:00:29]} 43. Qf3 {[%emt 0:00:05]} Qe5 {[%emt 0:00:
16]} 44. Qf4 {[%emt 0:00:12]} Qd5+ {[%emt 0:00:04]} 45. Qf3 {[%emt 0:00:02]}
Qe5 {[%emt 0:00:08]} 46. Qf4 {[%emt 0:00:06]} Qd5+ {[%emt 0:00:11]} 47. Qf3 {
[%emt 0:00:01]} 1/2-1/2

[Event "European Rapid Championship 2021"]
[Site "Katowice"]
[Date "2021.12.19"]
[Round "8.1"]
[White "Donchenko, Alexander"]
[Black "Piesik, Piotr"]
[Result "1-0"]
[ECO "A06"]
[WhiteElo "2535"]
[BlackElo "2342"]
[Annotator "ChessBase"]
[PlyCount "79"]
[EventDate "2021.12.18"]
[EventType "swiss"]
[EventCountry "POL"]
[SourceTitle "playchess.com"]
[Source "ChessBase"]
[SourceQuality "1"]
[TimeControl "900+10"]

1. Nf3 {[%emt 0:00:01]} d5 {[%emt 0:00:05]} 2. g3 {[%emt 0:00:03]} Nf6 {
[%emt 0:00:09]} 3. Bg2 {[%emt 0:00:03]} c6 {[%emt 0:00:14]} 4. c4 {[%emt 0:00:
12]} g6 {[%emt 0:00:27]} 5. b3 {[%emt 0:00:05]} Bg7 {[%emt 0:00:01]} 6. Bb2 {
[%emt 0:00:03]} O-O {[%emt 0:00:02]} 7. O-O {[%emt 0:00:02]} a5 {[%emt 0:00:13]
} 8. Nc3 {[%emt 0:01:51]} Bg4 {[%emt 0:00:39]} 9. Ne5 {[%emt 0:00:18]} Be6 {
[%emt 0:00:01]} 10. d4 {[%emt 0:00:14]} Nbd7 {[%emt 0:00:45]} 11. Nd3 {[%emt 0:
01:01]} Re8 {[%emt 0:03:13]} 12. Nf4 {[%emt 0:00:26]} Nf8 {[%emt 0:00:02]} 13.
cxd5 {[%emt 0:00:17]} Nxd5 {[%emt 0:00:21]} 14. Ncxd5 {[%emt 0:00:25]} Bxd5 {
[%emt 0:00:18]} 15. Nxd5 {[%emt 0:02:59]} cxd5 {[%emt 0:00:01]} 16. Qd3 {
[%emt 0:00:02]} Qd7 {[%emt 0:01:45]} 17. a4 {[%emt 0:00:33]} Rec8 {[%emt 0:00:
33]} 18. Rac1 {[%emt 0:00:34]} Ne6 {[%emt 0:02:01]} 19. e3 {[%emt 0:00:09]} Nd8
{[%emt 0:02:16]} 20. Qb5 {[%emt 0:00:35]} Qxb5 {[%emt 0:00:08]} 21. axb5 {
[%emt 0:00:02]} e6 {[%emt 0:00:02]} 22. e4 {[%emt 0:00:02]} dxe4 {[%emt 0:00:
06]} 23. Bxe4 {[%emt 0:00:02]} Rab8 {[%emt 0:00:37]} 24. Rfd1 {[%emt 0:04:06]}
b6 {[%emt 0:00:22]} 25. Kf1 {[%emt 0:00:07]} Bf8 {[%emt 0:00:59]} 26. Ke2 {
[%emt 0:00:12]} Bd6 {[%emt 0:00:16]} 27. Rc4 {[%emt 0:00:30]} Rxc4 {[%emt 0:00:
41]} 28. bxc4 {[%emt 0:00:01]} Rc8 {[%emt 0:00:01]} 29. c5 {[%emt 0:00:48]} Bc7
{[%emt 0:00:47]} 30. f4 {[%emt 0:00:51]} Rb8 {[%emt 0:00:33]} 31. c6 {[%emt 0:
00:11]} f5 {[%emt 0:00:30]} 32. d5 {[%emt 0:00:01]} fxe4 {[%emt 0:00:46]} 33.
d6 {[%emt 0:00:01]} Bxd6 {[%emt 0:00:01]} 34. Rxd6 {[%emt 0:00:01]} Nf7 {
[%emt 0:00:01]} 35. Rxe6 {[%emt 0:00:10]} a4 {[%emt 0:00:17]} 36. c7 {[%emt 0:
00:33]} Rc8 {[%emt 0:00:01]} 37. Rxb6 {[%emt 0:00:02]} a3 {[%emt 0:00:03]} 38.
Bd4 {[%emt 0:00:52]} h5 {[%emt 0:00:33]} 39. Rb8 {[%emt 0:00:05]} Nd6 {[%emt 0:
00:01]} 40. b6 {[%emt 0:00:03]} 1-0

[Event "European Rapid Championship 2021"]
[Site "Katowice"]
[Date "2021.12.19"]
[Round "8.1"]
[White "Adamczewski, Maciej"]
[Black "Lubczynski, Rafal"]
[Result "1/2-1/2"]
[ECO "D15"]
[WhiteElo "2081"]
[BlackElo "2289"]
[Annotator "NA"]
[PlyCount "46"]
[EventDate "2021.12.18"]
[EventType "swiss"]
[EventCountry "POL"]
[SourceTitle "playchess.com"]
[Source "ChessBase"]
[SourceQuality "1"]
[TimeControl "900+10"]

1. d4 {[%emt 0:00:01]} Nf6 {[%emt 0:00:01]} 2. c4 {[%emt 0:00:01]} c6 {[%emt 0:
00:06]} 3. Nc3 {[%emt 0:00:09]} d5 {[%emt 0:00:02]} 4. Nf3 {[%emt 0:00:03]} a6
{[%emt 0:00:01]} 5. cxd5 {[%emt 0:00:09]} cxd5 {[%emt 0:00:01]} 6. Bf4 {
[%emt 0:00:16]} b5 {[%emt 0:00:16]} 7. e3 {[%emt 0:00:11]} Bb7 {[%emt 0:00:02]}
8. Rc1 {[%emt 0:00:15]} Nc6 {[%emt 0:02:24]} 9. Be2 {[%emt 0:02:03]} e6 {
[%emt 0:00:03]} 10. O-O {[%emt 0:00:03]} Be7 {[%emt 0:00:06]} 11. h3 {[%emt 0:
00:04]} O-O {[%emt 0:00:04]} 12. Ne1 {[%emt 0:00:46]} Na5 {[%emt 0:04:31]} 13.
Nd3 {[%emt 0:02:20]} Rc8 {[%emt 0:03:18]} 14. Nc5 {[%emt 0:03:48]} Qb6 {
[%emt 0:00:01]} 15. b4 {[%emt 0:01:40]} Nc4 {[%emt 0:00:03]} 16. Nb1 {[%emt 0:
00:27]} Bc6 {[%emt 0:00:59]} 17. Qe1 {[%emt 0:03:12]} Ra8 {[%emt 0:00:27]} 18.
Nc3 {[%emt 0:01:11]} a5 {[%emt 0:00:12]} 19. a4 {[%emt 0:00:26]} axb4 {[%emt 0:
02:13]} 20. Nxb5 {[%emt 0:00:02]} Bxb5 {[%emt 0:00:06]} 21. Qxb4 {[%emt 0:00:
13]} Bxa4 {[%emt 0:03:29]} 22. Rxc4 {[%emt 0:00:03]} Qb5 {[%emt 0:00:13]} 23.
Qxb5 {[%emt 0:00:47]} Bxb5 {[%emt 0:00:02]} 1/2-1/2

[Event "European Rapid Championship 2021"]
[Site "Katowice"]
[Date "2021.12.19"]
[Round "8.2"]
[White "Brodowski, Piotr"]
[Black "Sumets, Andrey"]
[Result "1/2-1/2"]
[ECO "A13"]
[WhiteElo "2414"]
[BlackElo "2508"]
[Annotator "ChessBase"]
[PlyCount "37"]
[EventDate "2021.12.18"]
[EventType "swiss"]
[EventCountry "POL"]
[SourceTitle "playchess.com"]
[Source "ChessBase"]
[SourceQuality "1"]
[TimeControl "900+10"]

1. c4 {[%emt 0:00:04]} e6 {[%emt 0:00:02]} 2. Nf3 {[%emt 0:00:09]} d5 {[%emt 0:
00:02]} 3. e3 {[%emt 0:00:01]} Nf6 {[%emt 0:00:17]} 4. b3 {[%emt 0:00:04]} b6 {
[%emt 0:00:33]} 5. g3 {[%emt 0:01:14]} Bb7 {[%emt 0:00:33]} 6. Bg2 {[%emt 0:00:
03]} Be7 {[%emt 0:00:55]} 7. O-O {[%emt 0:00:30]} O-O {[%emt 0:00:03]} 8. Bb2 {
[%emt 0:00:03]} c5 {[%emt 0:00:17]} 9. Nc3 {[%emt 0:00:54]} Qc8 {[%emt 0:01:35]
} 10. Rc1 {[%emt 0:01:20]} Rd8 {[%emt 0:00:09]} 11. Qc2 {[%emt 0:04:23]} Nc6 {
[%emt 0:00:30]} 12. cxd5 {[%emt 0:00:33]} Nxd5 {[%emt 0:02:19]} 13. Nxd5 {
[%emt 0:00:15]} Rxd5 {[%emt 0:00:01]} 14. d4 {[%emt 0:00:16]} cxd4 {[%emt 0:01:
22]} 15. Nxd4 {[%emt 0:02:53]} Rc5 {[%emt 0:00:10]} 16. Qd2 {[%emt 0:00:33]}
Nxd4 {[%emt 0:00:51]} 17. Bxd4 {[%emt 0:01:12]} Bxg2 {[%emt 0:01:49]} 18. Bxc5
{[%emt 0:00:30]} Qb7 {[%emt 0:00:49]} 19. Bxe7 {[%emt 0:00:20]} 1/2-1/2

[Event "European Rapid Championship 2021"]
[Site "Katowice"]
[Date "2021.12.19"]
[Round "8.2"]
[White "Wisniewski, Adrian"]
[Black "Jazdanovs, Aleksandrs"]
[Result "1-0"]
[ECO "B50"]
[WhiteElo "2351"]
[BlackElo "2089"]
[Annotator "NA"]
[PlyCount "59"]
[EventDate "2021.12.18"]
[EventType "swiss"]
[EventCountry "POL"]
[SourceTitle "playchess.com"]
[Source "ChessBase"]
[SourceQuality "1"]
[TimeControl "900+10"]

1. e4 {[%emt 0:00:02]} c5 {[%emt 0:00:01]} 2. Nf3 {[%emt 0:00:02]} d6 {[%emt 0:
00:01]} 3. c3 {[%emt 0:00:01]} Nf6 {[%emt 0:00:25]} 4. Bc4 {[%emt 0:00:02]} e6
{[%emt 0:00:27]} 5. d3 {[%emt 0:00:15]} a6 {[%emt 0:00:30]} 6. Nbd2 {[%emt 0:
00:23]} Be7 {[%emt 0:00:04]} 7. Bb3 {[%emt 0:00:16]} O-O {[%emt 0:00:45]} 8.
O-O {[%emt 0:00:46]} Nc6 {[%emt 0:01:33]} 9. Re1 {[%emt 0:00:17]} b5 {[%emt 0:
00:04]} 10. Qe2 {[%emt 0:00:25]} Bb7 {[%emt 0:01:08]} 11. Nf1 {[%emt 0:00:40]}
Ne5 {[%emt 0:00:24]} 12. Bc2 {[%emt 0:00:44]} Qc7 {[%emt 0:01:07]} 13. Ng3 {
[%emt 0:02:02]} Rfe8 {[%emt 0:00:51]} 14. h3 {[%emt 0:01:36]} Rac8 {[%emt 0:03:
52]} 15. Nh2 {[%emt 0:00:18]} Ng6 {[%emt 0:00:16]} 16. f4 {[%emt 0:00:49]} e5 {
[%emt 0:02:35]} 17. f5 {[%emt 0:01:54]} Nf4 {[%emt 0:00:02]} 18. Bxf4 {[%emt 0:
00:23]} exf4 {[%emt 0:00:01]} 19. Nh5 {[%emt 0:00:08]} b4 {[%emt 0:01:34]} 20.
Nxf4 {[%emt 0:01:46]} d5 {[%emt 0:00:01]} 21. e5 {[%emt 0:00:34]} Bd6 {[%emt 0:
00:01]} 22. Nf3 {[%emt 0:02:03]} Bxe5 {[%emt 0:00:59]} 23. Nxe5 {[%emt 0:00:05]
} Nd7 {[%emt 0:00:01]} 24. d4 {[%emt 0:01:03]} cxd4 {[%emt 0:00:01]} 25. cxd4
Nxe5 {[%emt 0:00:07]} 26. Ba4 {[%emt 0:00:15]} Nd7 {[%emt 0:00:22]} 27. Qxe8+
Rxe8 {[%emt 0:00:01]} 28. Rxe8+ {[%emt 0:00:57]} Nf8 {[%emt 0:00:01]} 29. Rae1
{[%emt 0:00:30]} g5 {[%emt 0:00:09]} 30. Nh5 1-0